fUSD/lending_fUSD_20240919
["ID","MTS","AMOUNT","RATE_DAILY","PERIOD"]
[338562240,1726735834506,-500.0,0.00013698,2]
[338562241,1726735834516,-500.0,0.00013698,2]
[338562242,1726735834525,-500.0,0.00013698,2]
[338562243,1726735834535,-1127.23,0.00013698,2]
[338562244,1726735834544,-500.0,0.00013698,2]
[338562245,1726735834554,-500.0,0.00013698,2]
[338562246,1726735834563,-500.0,0.00013698,2]
[338562247,1726735834573,-500.0,0.00013698,2]
[338562248,1726735834582,-783.26,0.00013698,2]
[338562249,1726735834596,-500.0,0.00013698,2]
[338562250,1726735834605,-500.0,0.00013698,2]
[338562251,1726735834615,-1311.44,0.00013698,2]
[338562252,1726735834624,-500.0,0.00013698,2]
[338562253,1726735834636,-1110.52,0.00013698,2]
[338562254,1726735834646,-500.0,0.00013698,2]
[338562255,1726735834655,-500.0,0.00013698,2]
[338562256,1726735834665,-500.0,0.00013698,2]
[338562257,1726735834675,-500.0,0.00013698,2]
[338562258,1726735834684,-500.0,0.00013698,2]
[338562259,1726735834695,-500.0,0.00013698,2]
[338562260,1726735834705,-500.0,0.00013698,2]
[338562261,1726735834716,-500.0,0.00013698,2]
[338562262,1726735834726,-500.0,0.00013698,2]
[338562263,1726735834736,-500.0,0.00013698,2]
[338562264,1726735834745,-500.0,0.00013698,2]
[338562265,1726735834755,-500.0,0.00013698,2]
[338562266,1726735834764,-509.76,0.00013698,2]
[338562267,1726735834774,-500.0,0.00013698,2]
[338562268,1726735834784,-1066.09,0.00013698,2]
[338562269,1726735834794,-500.0,0.00013698,2]
[338562270,1726735834804,-500.0,0.00013698,2]
[338562271,1726735834813,-776.53,0.00013698,2]
[338562272,1726735834823,-500.0,0.00013698,2]
[338562273,1726735834832,-535.24,0.00013698,2]
[338562274,1726735834843,-500.0,0.00013698,2]
[338562275,1726735834852,-500.0,0.00013698,2]
[338562276,1726735834862,-500.0,0.00013698,2]
[338562277,1726735834872,-500.0,0.00013698,2]
[338562278,1726735834881,-500.0,0.00013698,2]
[338562279,1726735834891,-500.0,0.00013698,2]
[338562280,1726735834901,-500.0,0.00013698,2]
[338562281,1726735834911,-500.0,0.00013698,2]
[338562282,1726735834921,-585.4,0.00013698,2]
[338562283,1726735834930,-500.0,0.00013698,2]
[338562284,1726735834940,-500.0,0.00013698,2]
[338562285,1726735834950,-500.0,0.00013698,2]
[338562286,1726735834959,-500.0,0.00013698,2]
[338562287,1726735834968,-500.0,0.00013698,2]
[338562288,1726735834978,-500.0,0.00013698,2]
[338562289,1726735834988,-500.0,0.00013698,2]
[338562290,1726735834998,-500.0,0.00013698,2]
[338562291,1726735835009,-500.0,0.00013698,2]
[338562292,1726735835019,-500.0,0.00013698,2]
[338562293,1726735835029,-151.98,0.00013699,2]
[338562294,1726735835039,-1964.65817493,0.00013699,2]
[338562296,1726735837630,-786.34182507,0.00013699,2]
[338562297,1726735837643,-200.0,0.00013699,2]
[338562298,1726735837652,-567.08337493,0.00013699,2]
[338562299,1726735837685,-1260.96662507,0.00013699,2]
[338562300,1726735837694,-669.25248252,0.00013743,2]
[338562301,1726735837704,-748.43,0.00013799,2]
[338562302,1726735837716,-500.0,0.00013799,2]
[338562303,1726735837725,-500.0,0.00013799,2]
[338562304,1726735837735,-551.69,0.00013799,2]
[338562305,1726735837745,-500.0,0.00013799,2]
[338562306,1726735837755,-500.0,0.00013799,2]
[338562307,1726735837764,-500.0,0.00013799,2]
[338562308,1726735837774,-1366.49,0.00013799,2]
[338562309,1726735837783,-500.0,0.00013821,2]
[338562310,1726735837793,-500.0,0.00013821,2]
[338562311,1726735837803,-500.0,0.00013821,2]
[338562312,1726735837812,-500.0,0.00013821,2]
[338562313,1726735837821,-500.0,0.00013821,2]
[338562314,1726735837830,-206.8515932,0.00013821,2]
[338562315,1726735837839,-500.0,0.00013821,2]
[338562316,1726735837859,-500.0,0.00013821,2]
[338562318,1726735837869,-500.0,0.00013821,2]
[338562320,1726735837878,-500.0,0.00013821,2]
[338562322,1726735837888,-500.0,0.00013821,2]
[338562324,1726735837897,-500.0,0.00013821,2]
[338562325,1726735837907,-500.0,0.00013821,2]
[338562326,1726735837916,-500.0,0.00013821,2]
[338562327,1726735837926,-500.0,0.00013821,2]
[338562328,1726735837935,-500.0,0.00013821,2]
[338562329,1726735837945,-500.0,0.00013821,2]
[338562330,1726735837954,-500.0,0.00013821,2]
[338562331,1726735837963,-500.0,0.00013821,2]
[338562332,1726735837972,-500.0,0.00013821,2]
[338562333,1726735837982,-500.0,0.00013821,2]
[338562334,1726735837991,-285.05037628,0.00013821,2]
[338562335,1726735838001,-500.0,0.00013821,2]
[338562336,1726735838010,-500.0,0.00013821,2]
[338562337,1726735838019,-500.0,0.00013821,2]
[338562338,1726735838029,-225.07796082,0.00013821,2]
[338562339,1726735838039,-1067.15,0.00013821,2]
[338562340,1726735838049,-500.0,0.00013821,2]
[338562341,1726735838058,-507.65046896,0.00013821,2]
[338562342,1726735838067,-500.0,0.00013821,2]
[338562343,1726735838076,-500.0,0.00013821,2]
[338562344,1726735838086,-500.0,0.00013821,2]
[338562345,1726735838101,-500.0,0.00013821,2]
[338562346,1726735838110,-500.0,0.00013821,2]
[338562347,1726735838120,-540.7547549,0.00013821,2]
[338562348,1726735838130,-500.0,0.00013821,2]
[338562349,1726735838139,-500.0,0.00013821,2]
[338562350,1726735838150,-500.0,0.00013821,2]
[338562351,1726735838159,-500.0,0.00013821,2]
[338562352,1726735838168,-500.0,0.00013821,2]
[338562353,1726735838178,-500.0,0.00013821,2]
[338562354,1726735838187,-244.30879929,0.00013821,2]
[338562355,1726735838198,-500.0,0.00013821,2]
[338562356,1726735838208,-500.0,0.00013821,2]
[338562357,1726735838219,-500.0,0.00013821,2]
[338562358,1726735838228,-500.0,0.00013821,2]
[338562359,1726735838239,-567.09,0.00013821,2]
[338562360,1726735838248,-500.0,0.00013821,2]
[338562361,1726735838258,-500.0,0.00013821,2]
[338562362,1726735838267,-500.0,0.00013821,2]
[338562363,1726735838277,-500.0,0.00013821,2]
[338562364,1726735838286,-500.0,0.00013821,2]
[338562365,1726735838296,-500.0,0.00013821,2]
[338562366,1726735838305,-500.0,0.00013821,2]
[338562367,1726735838315,-503.93,0.00013821,2]
[338562368,1726735838325,-500.0,0.00013821,2]
[338562369,1726735838334,-500.0,0.00013821,2]
[338562370,1726735838344,-500.0,0.00013821,2]
[338562371,1726735838354,-501.17167418,0.00013821,2]
[338562372,1726735838364,-401.05592462,0.00013872,2]
[338562373,1726735838374,-500.0,0.00013881,2]
[338562374,1726735838384,-500.0,0.00013881,2]
[338562375,1726735838394,-599.32,0.00013881,2]
[338562376,1726735838404,-501.49,0.00013881,2]
[338562377,1726735838414,-1343.31,0.00013881,2]
[338562378,1726735838425,-842.32,0.00013881,2]
[338562379,1726735838434,-500.0,0.00013881,2]
[338562380,1726735838444,-500.0,0.00013881,2]
[338562381,1726735838453,-576.27,0.00013881,2]
[338562382,1726735838463,-500.0,0.00013881,2]
[338562383,1726735838472,-500.0,0.00013881,2]
[338562384,1726735838482,-500.0,0.00013881,2]
[338562385,1726735838491,-500.0,0.00013881,2]
[338562386,1726735838501,-500.0,0.00013881,2]
[338562387,1726735838511,-500.0,0.00013881,2]
[338562388,1726735838521,-305.23415198,0.00013882,2]
[338562389,1726735838531,-669.25248252,0.00013887,2]
[338562390,1726735838540,-1000.0,0.000139,5]
[338562391,1726735838550,-18390.8177886,0.00013962,3]
[338562392,1726735838560,-500.0,0.00013972,2]
[338562393,1726735838570,-500.0,0.00013972,2]
[338562394,1726735838579,-500.0,0.00013972,2]
[338562395,1726735838589,-556.93,0.00013972,2]
[338562396,1726735838608,-500.0,0.00013972,2]
[338562397,1726735838617,-500.0,0.00013972,2]
[338562398,1726735838628,-500.0,0.00013972,2]
[338562399,1726735838642,-500.0,0.00013972,2]
[338562400,1726735838652,-500.0,0.00013972,2]
[338562401,1726735838662,-500.0,0.00013972,2]
[338562402,1726735838672,-500.0,0.00013972,2]
[338562403,1726735838683,-500.0,0.00013972,2]
[338562404,1726735838693,-500.0,0.00013972,2]
[338562405,1726735838702,-547.63743096,0.00013972,2]
[338562406,1726735838714,-500.0,0.00013972,2]
[338562407,1726735838724,-500.0,0.00013972,2]
[338562408,1726735838733,-500.0,0.00013972,2]
[338562409,1726735838743,-548.32,0.00013972,2]
[338562410,1726735838805,-500.0,0.00013972,2]
[338562411,1726735838815,-500.0,0.00013972,2]
[338562412,1726735838824,-500.0,0.00013972,2]
[338562413,1726735838833,-500.0,0.00013972,2]
[338562414,1726735838850,-535.04,0.00013972,2]
[338562415,1726735838859,-500.0,0.00013972,2]
[338562416,1726735838868,-500.0,0.00013972,2]
[338562417,1726735838878,-500.0,0.00013972,2]
[338562418,1726735838887,-500.0,0.00013972,2]
[338562419,1726735838896,-500.0,0.00013972,2]
[338562420,1726735838906,-500.0,0.00013972,2]
[338562421,1726735838916,-551.77,0.00013972,2]
[338562422,1726735838925,-500.0,0.00013972,2]
[338562423,1726735838935,-552.31,0.00013972,2]
[338562424,1726735838944,-500.0,0.00013972,2]
[338562425,1726735838954,-500.0,0.00013972,2]
[338562426,1726735838963,-591.92,0.00013972,2]
[338562427,1726735838973,-2251.31,0.00013972,2]
[338562428,1726735838982,-500.0,0.00013972,2]
[338562429,1726735838991,-500.0,0.00013972,2]
[338562430,1726735839000,-380.86129691,0.00013972,2]
[338562431,1726735839009,-500.0,0.00013972,2]
[338562432,1726735839018,-500.0,0.00013972,2]
[338562433,1726735839028,-729.69,0.00013972,2]
[338562434,1726735839037,-7331.83,0.00013972,2]
[338562435,1726735839046,-541.61119628,0.00013972,2]
[338562436,1726735839055,-500.0,0.00013972,2]
[338562437,1726735839064,-500.0,0.00013972,2]
[338562438,1726735839073,-809.9,0.00013972,2]
[338562439,1726735839082,-500.0,0.00013972,2]
[338562440,1726735839094,-500.0,0.00013972,2]
[338562441,1726735839103,-500.0,0.00013972,2]
[338562442,1726735839112,-500.0,0.00013972,2]
[338562443,1726735839121,-1127.23,0.00013972,2]
[338562444,1726735839131,-362.41218466,0.00013972,2]
[338562445,1726735839140,-500.0,0.00013972,2]
[338562446,1726735839149,-500.0,0.00013972,2]
[338562447,1726735839159,-500.0,0.00013972,2]
[338562448,1726735839168,-783.26,0.00013972,2]
[338562449,1726735839177,-500.0,0.00013972,2]
[338562450,1726735839186,-500.0,0.00013972,2]
[338562451,1726735839196,-1311.44,0.00013972,2]
[338562452,1726735839206,-500.0,0.00013972,2]
[338562453,1726735839215,-1110.52,0.00013972,2]
[338562454,1726735839225,-500.0,0.00013972,2]
[338562455,1726735839235,-500.0,0.00013972,2]
[338562456,1726735839244,-500.0,0.00013972,2]
[338562457,1726735839253,-500.0,0.00013972,2]
[338562458,1726735839263,-500.0,0.00013972,2]
[338562459,1726735839272,-500.0,0.00013972,2]
[338562460,1726735839283,-500.0,0.00013972,2]
[338562461,1726735839292,-500.0,0.00013972,2]
[338562462,1726735839302,-500.0,0.00013972,2]
[338562463,1726735839311,-500.0,0.00013972,2]
[338562464,1726735839320,-500.0,0.00013972,2]
[338562465,1726735839329,-500.0,0.00013972,2]
[338562466,1726735839339,-509.76,0.00013972,2]
[338562467,1726735839351,-500.0,0.00013972,2]
[338562468,1726735839360,-1066.09,0.00013972,2]
[338562469,1726735839370,-500.0,0.00013972,2]
[338562470,1726735839379,-500.0,0.00013972,2]
[338562471,1726735839389,-776.53,0.00013972,2]
[338562472,1726735839398,-500.0,0.00013972,2]
[338562473,1726735839407,-535.24,0.00013972,2]
[338562474,1726735839417,-500.0,0.00013972,2]
[338562475,1726735839426,-500.0,0.00013972,2]
[338562476,1726735839436,-500.0,0.00013972,2]
[338562477,1726735839446,-500.0,0.00013972,2]
[338562478,1726735839455,-500.0,0.00013972,2]
[338562479,1726735839465,-500.0,0.00013972,2]
[338562480,1726735839474,-500.0,0.00013972,2]
[338562481,1726735839484,-500.0,0.00013972,2]
[338562482,1726735839494,-585.4,0.00013972,2]
[338562483,1726735839504,-372.12777882,0.00013972,2]
[338562484,1726735839513,-500.0,0.00013972,2]
[338562485,1726735839523,-500.0,0.00013972,2]
[338562486,1726735839532,-500.0,0.00013972,2]
[338562487,1726735839541,-500.0,0.00013972,2]
[338562488,1726735839551,-500.0,0.00013972,2]
[338562489,1726735839560,-500.0,0.00013972,2]
[338562490,1726735839570,-500.0,0.00013972,2]
[338562491,1726735839579,-235.60987516,0.00013972,2]
[338562492,1726735839588,-500.0,0.00013972,2]
[338562493,1726735839601,-420.0,0.00013995,2]
[338562494,1726735839610,-2100.0,0.00014,5]
[338562495,1726735839620,-500.0,0.00014004,2]
[338562496,1726735839630,-9195.40889429,0.00014018,3]
[338562497,1726735839644,-9195.40889429,0.00014029,3]
[338562498,1726735839653,-669.25248252,0.00014032,2]
[338562499,1726735839663,-442.649,0.00014039,2]
[338562500,1726735839672,-625.0,0.00014039,2]
[338562501,1726735839682,-1262.0,0.00014039,2]
[338562502,1726735839691,-932.0,0.00014039,2]
[338562503,1726735839701,-558.0,0.00014039,2]
[338562504,1726735839711,-150.0,0.00014039,2]
[338562505,1726735839720,-553.0,0.00014039,2]
[338562506,1726735839729,-1902.0,0.00014039,2]
[338562507,1726735839738,-3345.0,0.00014039,2]
[338562508,1726735839747,-806.0,0.00014039,2]
[338562509,1726735839757,-248.0,0.00014039,2]
[338562510,1726735839765,-5806.038,0.00014039,2]
[338562511,1726735839774,-150.0,0.00014039,2]
[338562512,1726735839783,-150.0,0.00014039,2]
[338562513,1726735839793,-305.242,0.00014039,2]
[338562514,1726735839802,-150.0,0.00014039,2]
[338562515,1726735839811,-223.413,0.00014039,2]
[338562516,1726735839820,-150.0,0.00014039,2]
[338562517,1726735839829,-211.286,0.00014039,2]
[338562518,1726735839838,-1080.0,0.00014039,2]
[338562519,1726735839850,-9195.40889429,0.00014065,3]
[338562520,1726735839859,-748.43,0.00014073,2]
[338562521,1726735839868,-500.0,0.00014073,2]
[338562522,1726735839878,-500.0,0.00014073,2]
[338562523,1726735839887,-551.69,0.00014073,2]
[338562524,1726735839896,-500.0,0.00014073,2]
[338562525,1726735839905,-500.0,0.00014073,2]
[338562526,1726735839915,-500.0,0.00014073,2]
[338562527,1726735839924,-1366.49,0.00014073,2]
[338562528,1726735839933,-18390.8177886,0.00014075,3]
[338562529,1726735839942,-18390.8177886,0.00014085,3]
[338562530,1726735839951,-500.0,0.00014095,2]
[338562531,1726735839960,-500.0,0.00014095,2]
[338562532,1726735839969,-500.0,0.00014095,2]
[338562533,1726735839978,-500.0,0.00014095,2]
[338562534,1726735839988,-500.0,0.00014095,2]
[338562535,1726735839997,-643.88167146,0.00014095,2]
[338562536,1726735840006,-500.0,0.00014095,2]
[338562537,1726735840016,-500.0,0.00014095,2]
[338562538,1726735840025,-500.0,0.00014095,2]
[338562539,1726735840035,-500.0,0.00014095,2]
[338562540,1726735840044,-500.0,0.00014095,2]
[338562541,1726735840053,-500.0,0.00014095,2]
[338562542,1726735840063,-500.0,0.00014095,2]
[338562543,1726735840072,-217.38107759,0.00014095,2]
[338562544,1726735840081,-320.37198301,0.00014095,2]
[338562545,1726735840090,-500.0,0.00014095,2]
[338562546,1726735840101,-500.0,0.00014095,2]
[338562547,1726735840111,-500.0,0.00014095,2]
[338562548,1726735840120,-500.0,0.00014095,2]
[338562549,1726735840129,-500.0,0.00014095,2]
[338562550,1726735840139,-500.0,0.00014095,2]
[338562551,1726735840148,-599.92299674,0.00014095,2]
[338562552,1726735840157,-500.0,0.00014095,2]
[338562553,1726735840166,-1067.15,0.00014095,2]
[338562554,1726735840176,-500.0,0.00014095,2]
[338562555,1726735840185,-500.0,0.00014095,2]
[338562556,1726735840195,-500.0,0.00014095,2]
[338562557,1726735840205,-500.0,0.00014095,2]
[338562558,1726735840214,-295.79741088,0.00014095,2]
[338562559,1726735840223,-500.0,0.00014095,2]
[338562560,1726735840233,-500.0,0.00014095,2]
[338562561,1726735840242,-500.0,0.00014095,2]
[338562562,1726735840251,-500.0,0.00014095,2]
[338562563,1726735840260,-609.64343625,0.00014095,2]
[338562564,1726735840270,-500.0,0.00014095,2]
[338562565,1726735840279,-500.0,0.00014095,2]
[338562566,1726735840288,-500.0,0.00014095,2]
[338562567,1726735840297,-500.0,0.00014095,2]
[338562568,1726735840306,-500.0,0.00014095,2]
[338562569,1726735840315,-500.0,0.00014095,2]
[338562570,1726735840324,-567.09,0.00014095,2]
[338562571,1726735840334,-500.0,0.00014095,2]
[338562572,1726735840344,-500.0,0.00014095,2]
[338562573,1726735840353,-500.0,0.00014095,2]
[338562574,1726735840363,-500.0,0.00014095,2]
[338562575,1726735840372,-500.0,0.00014095,2]
[338562576,1726735840381,-500.0,0.00014095,2]
[338562577,1726735840390,-500.0,0.00014095,2]
[338562578,1726735840399,-503.93,0.00014095,2]
[338562579,1726735840408,-500.0,0.00014095,2]
[338562580,1726735840418,-500.0,0.00014095,2]
[338562581,1726735840427,-500.0,0.00014095,2]
[338562582,1726735840437,-3200.0,0.000141,5]
[338562583,1726735840446,-9195.40889429,0.00014115,3]
[338562584,1726735840455,-9195.40889429,0.00014136,3]
[338562585,1726735840464,-1007.7201853,0.00014142,2]
[338562586,1726735840474,-500.0,0.00014155,2]
[338562587,1726735840483,-500.0,0.00014155,2]
[338562588,1726735840493,-599.32,0.00014155,2]
[338562589,1726735840502,-501.49,0.00014155,2]
[338562590,1726735840511,-1343.31,0.00014155,2]
[338562591,1726735840520,-842.32,0.00014155,2]
[338562592,1726735840529,-500.0,0.00014155,2]
[338562593,1726735840538,-500.0,0.00014155,2]
[338562594,1726735840547,-576.27,0.00014155,2]
[338562595,1726735840557,-500.0,0.00014155,2]
[338562596,1726735840566,-500.0,0.00014155,2]
[338562597,1726735840575,-500.0,0.00014155,2]
[338562598,1726735840584,-500.0,0.00014155,2]
[338562599,1726735840594,-500.0,0.00014155,2]
[338562600,1726735840604,-669.25248252,0.00014177,2]
[338562601,1726735840613,-9195.40889429,0.0001418,3]
[338562602,1726735840622,-151.13,0.00014192,2]
[338562603,1726735840632,-150.0,0.00014192,2]
[338562604,1726735840645,-150.0,0.00014192,2]
[338562605,1726735840655,-150.0,0.00014192,2]
[338562606,1726735840665,-150.0,0.00014192,2]
[338562607,1726735840674,-150.0,0.00014192,2]
[338562608,1726735840685,-4300.0,0.000142,5]
[338562609,1726735840695,-9195.40889429,0.00014226,3]
[338562610,1726735840704,-36781.6355772,0.00014236,3]
[338562611,1726735840713,-500.0,0.00014246,2]
[338562612,1726735840724,-500.0,0.00014246,2]
[338562613,1726735840733,-500.0,0.00014246,2]
[338562614,1726735840743,-556.93,0.00014246,2]
[338562615,1726735840752,-500.0,0.00014246,2]
[338562616,1726735840761,-500.0,0.00014246,2]
[338562617,1726735840770,-500.0,0.00014246,2]
[338562618,1726735840780,-500.0,0.00014246,2]
[338562619,1726735840789,-500.0,0.00014246,2]
[338562620,1726735840798,-500.0,0.00014246,2]
[338562621,1726735840808,-500.0,0.00014246,2]
[338562622,1726735840817,-500.0,0.00014246,2]
[338562623,1726735840826,-500.0,0.00014246,2]
[338562624,1726735840836,-500.0,0.00014246,2]
[338562625,1726735840845,-500.0,0.00014246,2]
[338562626,1726735840854,-500.0,0.00014246,2]
[338562627,1726735840864,-548.32,0.00014246,2]
[338562628,1726735840874,-500.0,0.00014246,2]
[338562629,1726735840884,-500.0,0.00014246,2]
[338562630,1726735840893,-500.0,0.00014246,2]
[338562631,1726735840903,-500.0,0.00014246,2]
[338562632,1726735840912,-535.04,0.00014246,2]
[338562633,1726735840921,-500.0,0.00014246,2]
[338562634,1726735840930,-500.0,0.00014246,2]
[338562635,1726735840939,-500.0,0.00014246,2]
[338562636,1726735840948,-500.0,0.00014246,2]
[338562637,1726735840957,-500.0,0.00014246,2]
[338562638,1726735840968,-167.76492718,0.00014246,2]
[338562639,1726735840978,-551.77,0.00014246,2]
[338562640,1726735840989,-500.0,0.00014246,2]
[338562641,1726735841001,-552.31,0.00014246,2]
[338562642,1726735841011,-500.0,0.00014246,2]
[338562643,1726735841020,-500.0,0.00014246,2]
[338562644,1726735841030,-591.92,0.00014246,2]
[338562645,1726735841040,-2251.31,0.00014246,2]
[338562646,1726735841050,-610.87819254,0.00014246,2]
[338562647,1726735841060,-500.0,0.00014246,2]
[338562648,1726735841070,-500.0,0.00014246,2]
[338562649,1726735841080,-500.0,0.00014246,2]
[338562650,1726735841091,-729.69,0.00014246,2]
[338562651,1726735841112,-7331.83,0.00014246,2]
[338562652,1726735841122,-500.0,0.00014246,2]
[338562653,1726735841132,-500.0,0.00014246,2]
[338562654,1726735841141,-809.9,0.00014246,2]
[338562655,1726735841150,-500.0,0.00014246,2]
[338562656,1726735841160,-500.0,0.00014246,2]
[338562657,1726735841170,-500.0,0.00014246,2]
[338562658,1726735841180,-500.0,0.00014246,2]
[338562659,1726735841191,-1127.23,0.00014246,2]
[338562660,1726735841201,-500.0,0.00014246,2]
[338562661,1726735841211,-500.0,0.00014246,2]
[338562662,1726735841221,-500.0,0.00014246,2]
[338562663,1726735841231,-783.26,0.00014246,2]
[338562664,1726735841241,-500.0,0.00014246,2]
[338562665,1726735841251,-500.0,0.00014246,2]
[338562666,1726735841261,-1311.44,0.00014246,2]
[338562667,1726735841271,-500.0,0.00014246,2]
[338562668,1726735841281,-1110.52,0.00014246,2]
[338562669,1726735841290,-500.0,0.00014246,2]
[338562670,1726735841300,-500.0,0.00014246,2]
[338562671,1726735841310,-500.0,0.00014246,2]
[338562672,1726735841321,-500.0,0.00014246,2]
[338562673,1726735841331,-500.0,0.00014246,2]
[338562674,1726735841341,-500.0,0.00014246,2]
[338562675,1726735841353,-500.0,0.00014246,2]
[338562676,1726735841363,-500.0,0.00014246,2]
[338562677,1726735841373,-500.0,0.00014246,2]
[338562678,1726735841383,-500.0,0.00014246,2]
[338562679,1726735841393,-500.0,0.00014246,2]
[338562680,1726735841404,-500.0,0.00014246,2]
[338562681,1726735841414,-509.76,0.00014246,2]
[338562682,1726735841425,-500.0,0.00014246,2]
[338562683,1726735841435,-1066.09,0.00014246,2]
[338562684,1726735841446,-500.0,0.00014246,2]
[338562685,1726735841456,-500.0,0.00014246,2]
[338562686,1726735841466,-776.53,0.00014246,2]
[338562687,1726735841476,-500.0,0.00014246,2]
[338562688,1726735841486,-535.24,0.00014246,2]
[338562689,1726735841497,-500.0,0.00014246,2]
[338562690,1726735841507,-500.0,0.00014246,2]
[338562691,1726735841517,-500.0,0.00014246,2]
[338562692,1726735841528,-500.0,0.00014246,2]
[338562693,1726735841538,-500.0,0.00014246,2]
[338562694,1726735841549,-500.0,0.00014246,2]
[338562695,1726735841559,-500.0,0.00014246,2]
[338562696,1726735841571,-500.0,0.00014246,2]
[338562697,1726735841583,-585.4,0.00014246,2]
[338562698,1726735841593,-500.0,0.00014246,2]
[338562699,1726735841604,-500.0,0.00014246,2]
[338562700,1726735841615,-500.0,0.00014246,2]
[338562701,1726735841625,-500.0,0.00014246,2]
[338562702,1726735841638,-452.48,0.00014246,2]
[338562703,1726735841649,-500.0,0.00014246,2]
[338562704,1726735841659,-500.0,0.00014246,2]
[338562705,1726735841669,-500.0,0.00014246,2]
[338562706,1726735841682,-8312.4761695,0.0001429,3]
[338562707,1726735841693,-5400.0,0.000143,5]
[338562708,1726735841703,-669.25248252,0.00014321,2]
[338562709,1726735841715,-9195.40889429,0.00014329,3]
[338562710,1726735841726,-8312.4761695,0.00014329,3]
[338562711,1726735841737,-8312.4761695,0.00014338,3]
[338562712,1726735841748,-18390.8177886,0.00014339,3]
[338562713,1726735841759,-8312.4761695,0.00014339,3]
[338562714,1726735841771,-748.43,0.00014347,2]
[338562715,1726735841782,-500.0,0.00014347,2]
[338562716,1726735841794,-500.0,0.00014347,2]
[338562717,1726735841806,-551.69,0.00014347,2]
[338562718,1726735841816,-500.0,0.00014347,2]
[338562719,1726735841827,-500.0,0.00014347,2]
[338562720,1726735841838,-500.0,0.00014347,2]
[338562721,1726735841850,-1366.49,0.00014347,2]
[338562722,1726735841861,-9195.40889429,0.00014348,3]
[338562723,1726735841872,-18390.8177886,0.00014349,3]
[338562724,1726735841882,-8312.4761695,0.00014349,3]
[338562725,1726735841893,-18390.8177886,0.00014359,3]
[338562726,1726735841903,-16624.952339,0.00014359,3]
[338562727,1726735841913,-500.0,0.00014369,2]
[338562728,1726735841925,-500.0,0.00014369,2]
[338562729,1726735841935,-500.0,0.00014369,2]
[338562730,1726735841944,-500.0,0.00014369,2]
[338562731,1726735841954,-500.0,0.00014369,2]
[338562732,1726735841965,-500.0,0.00014369,2]
[338562733,1726735841975,-500.0,0.00014369,2]
[338562734,1726735841986,-500.0,0.00014369,2]
[338562735,1726735841996,-508.19838409,0.00014369,2]
[338562736,1726735842006,-500.0,0.00014369,2]
[338562737,1726735842017,-500.0,0.00014369,2]
[338562738,1726735842027,-500.0,0.00014369,2]
[338562739,1726735842037,-500.0,0.00014369,2]
[338562740,1726735842047,-500.0,0.00014369,2]
[338562741,1726735842057,-500.0,0.00014369,2]
[338562742,1726735842067,-500.0,0.00014369,2]
[338562743,1726735842077,-500.0,0.00014369,2]
[338562744,1726735842088,-500.0,0.00014369,2]